{"text_format":"3","workbook":"xlsx","n_sheets":6,"sheets":["Start","Übersicht","Vorlage für Anlaufkosten","Beispiel für Anlaufkosten","Gewinn und Verlust-Vorlage","Gewinn und Verlust-Beispiel"],"not_rendered":{"defined_names":6},"read":"whole","date_system":"1900"}

{"sheet":"Start","index":0,"n_rows":8,"n_cols":2,"rows_kept":8}
[null,"INFORMATIONEN ZU DIESER VORLAGE"]
[null,"Erstellen Sie mithilfe dieser Vorlage einen Finanzplan für Unternehmensstart. "]
[null,"Verschaffen Sie sich einen Überblick über einen Finanzplan im Arbeitsblatt \"Übersicht\". "]
[null,"Verwenden Sie die Arbeitsblätter \"Startkostenvorlage\" und \"Gewinn und Verlust-Vorlage\", um die Startkosten und den Gewinn und Verlust zu berücksichtigen. "]
[null,"Die Beispielarbeitsblätter \"Startkosten\" und \"Gewinn und Verlust\" enthalten Beispieldaten in Tabellen."]
[null,"Notiz: "]
[null,"Weitere Anweisungen wurden in Spalte A auf allen Arbeitsblättern bereitgestellt. Diese Texte wurden absichtlich ausgeblendet. Um die Texte zu entfernen, wählen Sie Spalte A und dann ENTF aus. Um die Texte einzublenden, wählen Sie Spalte A aus, und ändern Sie die Schriftfarbe."]
[null,"Um mehr über Tabellen zu erfahren, drücken Sie die UMSCHALTTASTE und dann F10 innerhalb einer Tabelle, wählen Sie die Option TABELLE und dann ALTERNATIVTEXT aus."]

{"sheet":"Übersicht","index":1,"n_rows":7,"n_cols":2,"rows_kept":7}
[null,"FINANZPLAN FÜR UNTERNEHMENSSTART"]
[null,"In einem Finanzplan laufen alle Aspekte der Geschäftsplanung zusammen. Nachdem Sie Ihr Produkt, den Zielmarkt und die Zielkunden zusammen mit den Preisen identifiziert haben, können Sie mit der Vorhersage von Kosten, Verkäufen und Gewinn beginnen. Diese Elemente sowie Ihre Annahmen helfen Ihnen bei der Einschätzung Ihrer Umsatzprognose. Das Gegenstück sind die Kosten, mit denen Sie rechnen. Eine fortlaufende Berechnung ist hier wichtig, um zu sehen, wann Ihre Tätigkeit gewinnbringend ist. Es ist auch wichtig, wenn Sie Ihr Unternehmen starten, dass Sie wissen, welche Kosten Sie decken müssen, bevor der Kundenumsatz oder der von ihnen generierte Cashflow bei Ihnen eingeht. "]
[null,"Voraussichtliche Anlaufkosten: Die Tabelle auf der nächsten Registerkarte, \"Startkostenvorlage\", enthält eine leere Vorlage mit einigen Anweisungen für die ersten Schritte.  Auf der nächsten Registerkarte, Beispiel für \"Startkosten\", wird ein Beispiel für laufende und einmalige Kostenelemente angezeigt, die Sie möglicherweise benötigen, um Ihr Unternehmen zu öffnen. Viele Unternehmen werden auf Kredit über einen längeren Zeitraum bezahlt und nehmen nicht unmittelbar Bargeld ein. Es ist wichtig, zu schätzen, wann der Cash-Flow in das Unternehmen einsetzen wird. Treffen Sie dazu eine Annahme darüber, wie viele Monate Sie wiederkehrende Posten zusätzlich zu einmaligen Kosten aus Ersparnissen oder einer anfänglichen Investition finanzieren werden müssen.  "]
[null,"Modell für Gewinn- und Verlustprognosen: Auf der Registerkarte \"Gewinn und Verlust-Vorlage\" finden Sie eine leere Vorlage für die Umsatzprognose und ein Gewinn- und Verlustmodell. Die nächste Registerkarte \"Gewinn und Verlust-Beispiel\" zeigt Beispiele für einige Prognosen eines kleinen Unternehmens, bezogen auf die ersten 12 Monate seiner Tätigkeit. Im oberen Teil der Tabelle sind erwarteter Umsatz und Bruttogewinn aufgeführt. Dies ist ein guter Ausgangspunkt für die Erstellung Ihrer Umsatzprognose. Im nächsten Abschnitt unten werden die wiederkehrenden Ausgaben aufgeführt, die Sie für die gleichen Monate prognostizieren. Diese sollten den geschätzten Anlaufkosten entsprechen, die Sie im vorherigen Abschnitt berechnet haben. Ganz unten in diesem Modell können Sie verfolgen, wann Ihr Unternehmen rentabel wird und welche Spesenposten sich am stärksten auf die Rentabilität auswirken. "]
[null,"Verfolgen Sie Ihre Annahmen, für Ihre Einschätzung von Umsatz und Kosten der verkauften Waren. Für Unternehmen, die den Betrieb noch nicht aufgenommen haben, sollten Sie wissen, wie Sie diese für Ihr Produkt oder Ihre Dienstleistung schätzen können.  Im Folgenden finden Sie einige Richtlinien zur Schätzung: "]
[null,"Umsatz: Bestimmen Sie zunächst anhand Ihres Zielmarkts (die Gruppe der potenziellen Kunden, Unternehmen oder Verbraucher), wie viele davon im ersten Jahr als Ziele festgelegt werden. Welchen Prozentsatz davon werden Sie voraussichtlich abschließen? Was ist eine durchschnittliche Transaktion für sie, um Ihr Produkt oder Ihren Dienst zu kaufen? Wie viele können Sie im ersten Monat, im zweiten Monat usw. ausführen? Sie können mit einer Zahl im ersten Monat beginnen und diese um einen Prozentsatz erhöhen, z. B. 10 %.  Wenn Sie beispielsweise Reinigungsdienstleistungen an kleine Unternehmen in Ihrer Stadt verkaufen und es gibt 500 Unternehmen, von denen Sie glauben, dass sie die Dienstleistung benötigen. Wenn der durchschnittliche Vertrag 250 USD/Monat beträgt, müssen Sie schätzen, mit wie vielen Unternehmen Sie im ersten Jahr jeden Monat einen Vertrag abschließen können. "]
[null,"Wareneinsatz (Cost of Goods Sold, COGS):  Dies sollte für Produkte und einige Dienste berechnet werden.  Dabei handelt es sich um die enthaltenen Kosten für die Produktion des Produkts.  Wenn Sie beispielsweise Bekleidung verkaufen, ist der Wareneinsatz (COGS) der Preis, den Sie für den Kauf der Kleidung bei einem Hersteller bezahlt haben.  Wenn Sie sie selbst herstellen, wären dies die Kosten für die Materialien und Arbeit bei der Herstellung. Bei Dienstleistungen wären dies die direkten Kosten für eine Stunde abrechenbarer Arbeit.  Alles unterhalb dem Bruttogewinn in der Gewinn und Verlust-Vorlage sind Fix- oder Betriebskosten für das gesamte Unternehmen, z. B. Miete, Telefon oder sogar Marketing. "]

{"sheet":"Vorlage für Anlaufkosten","index":2,"n_rows":10,"n_cols":6,"rows_kept":10,"merged":[[1,2,1,5]]}
[null,"ANLAUFKOSTEN"]
[null,"Ihr Coffee-Shop",{"$f":"TODAY()","v":"2022-01-20"}]
[]
[null,"KOSTENELEMENTE","MONATE","KOSTEN/MONAT","EINMALIGE KOSTEN","GESAMTKOSTEN"]
[null,"Werbung/Marketing",{"$nulls":3},{"$f":"(C5*D5)+IF(E5>0,E5,0)","v":{"v":0,"d":"0 €"}}]
[null,"Mitarbeitergehälter",{"$nulls":3},{"$f":"(C6*D6)+IF(E6>0,E6,0)","v":{"v":0,"d":"0 €"}}]
[null,"Lohnsteuern und Leistungen für Mitarbeiter",{"$nulls":3},{"v":0,"d":"0 €"}]
[null,"Miete/Pachtzahlungen/Nebenkosten",{"$nulls":3},{"v":0,"d":"0 €"}]
[null,"Porto/Versand",{"$nulls":3},{"v":0,"d":"0 €"}]
[null,"GESCHÄTZTES ANFANGSBUDGET",{"$nulls":3},{"$f":"SUBTOTAL(109,StartUp[GESAMTKOSTEN])","v":0}]

{"sheet":"Beispiel für Anlaufkosten","index":3,"n_rows":10,"n_cols":6,"rows_kept":10,"merged":[[1,2,1,5]]}
[null,"ANLAUFKOSTEN"]
[null,{"$f":"'Vorlage für Anlaufkosten'!B2","v":"Ihr Coffee-Shop"},{"$f":"TODAY()","v":"2022-01-20"}]
[]
[null,"KOSTENELEMENTE","MONATE","KOSTEN/MONAT","EINMALIGE KOSTEN","GESAMTKOSTEN"]
[null,"Werbung/Marketing",3,{"v":300,"d":"300 €"},{"v":2000,"d":"2,000 €"},{"$f":"(C5*D5)+IF(E5>0,E5,0)","v":{"v":2900,"d":"2,900 €"}}]
[null,"Mitarbeitergehälter",4,{"v":3500,"d":"3,500 €"},{"v":2,"d":"2 €"},{"$f":"(C6*D6)+IF(E6>0,E6,0)","v":{"v":14002,"d":"14,002 €"}}]
[null,"Lohnsteuern und Leistungen für Mitarbeiter",4,{"v":500,"d":"500 €"},{"v":2000,"d":"2,000 €"},{"v":4000,"d":"4,000 €"}]
[null,"Miete/Pachtzahlungen/Nebenkosten",4,{"v":750,"d":"750 €"},{"v":3000,"d":"3,000 €"},{"v":6000,"d":"6,000 €"}]
[null,"Porto/Versand",1,{"v":25,"d":"25 €"},{"v":25,"d":"25 €"},{"v":50,"d":"50 €"}]
[null,"GESCHÄTZTES ANFANGSBUDGET",{"$nulls":3},{"$f":"SUM(F6:F9)","v":{"v":24052,"d":"24,052 €"}}]

{"sheet":"Gewinn und Verlust-Vorlage","index":4,"n_rows":23,"n_cols":15,"rows_kept":23,"merged":[[1,2,1,14]]}
[null,"ANLAUFKOSTEN"]
[null,{"$f":"'Vorlage für Anlaufkosten'!B2","v":"Ihr Coffee-Shop"},{"$f":"TODAY()","v":"2022-01-20"}]
[]
[null,"UMSATZ","JAN","FEB","MRZ","APR","MAI","JUN","JUL","AUG","SEPT","OKT","NOV","DEZ","JBH"]
[null,"Geschätzter Produktumsatz",{"v":0,"d":"0 €"},{"v":0,"d":"0 €"},{"v":0,"d":"0 €"},{"v":0,"d":"0 €"},{"v":0,"d":"0 €"},{"v":0,"d":"0 €"},{"v":0,"d":"0 €"},{"v":0,"d":"0 €"},{"v":0,"d":"0 €"},{"v":0,"d":"0 €"},{"v":0,"d":"0 €"},{"v":0,"d":"0 €"},{"$f":"SUM(C5:N5)","v":{"v":0,"d":"0 €"}}]
[null,"Minus Retouren und Rabatte",{"v":0,"d":"0 €"},{"v":0,"d":"0 €"},{"v":0,"d":"0 €"},{"v":0,"d":"0 €"},{"v":0,"d":"0 €"},{"v":0,"d":"0 €"},{"v":0,"d":"0 €"},{"v":0,"d":"0 €"},{"v":0,"d":"0 €"},{"v":0,"d":"0 €"},{"v":0,"d":"0 €"},{"v":0,"d":"0 €"},{"$f":"SUM(C6:N6)","v":{"v":0,"d":"0 €"}}]
[null,"Serviceumsatz",{"v":0,"d":"0 €"},{"v":0,"d":"0 €"},{"v":0,"d":"0 €"},{"v":0,"d":"0 €"},{"v":0,"d":"0 €"},{"v":0,"d":"0 €"},{"v":0,"d":"0 €"},{"v":0,"d":"0 €"},{"v":0,"d":"0 €"},{"v":0,"d":"0 €"},{"v":0,"d":"0 €"},{"v":0,"d":"0 €"},{"v":0,"d":"0 €"}]
[null,"Sonstige Umsatzerlöse ",{"v":0,"d":"0 €"},{"v":0,"d":"0 €"},{"v":0,"d":"0 €"},{"v":0,"d":"0 €"},{"v":0,"d":"0 €"},{"v":0,"d":"0 €"},{"v":0,"d":"0 €"},{"v":0,"d":"0 €"},{"v":0,"d":"0 €"},{"v":0,"d":"0 €"},{"v":0,"d":"0 €"},{"v":0,"d":"0 €"},{"v":0,"d":"0 €"}]
[null,"Nettoumsatz",{"$f":"SUBTOTAL(109,BeispielUmsatz[JAN])","v":{"v":0,"d":"0 €"}},{"$f":"SUBTOTAL(109,BeispielUmsatz[FEB])","v":{"v":0,"d":"0 €"}},{"$f":"SUBTOTAL(109,BeispielUmsatz[MRZ])","v":{"v":0,"d":"0 €"}},{"$f":"SUBTOTAL(109,BeispielUmsatz[APR])","v":{"v":0,"d":"0 €"}},{"$f":"SUBTOTAL(109,BeispielUmsatz[MAI])","v":{"v":0,"d":"0 €"}},{"$f":"SUBTOTAL(109,BeispielUmsatz[JUN])","v":{"v":0,"d":"0 €"}},{"$f":"SUBTOTAL(109,BeispielUmsatz[JUL])","v":{"v":0,"d":"0 €"}},{"$f":"SUBTOTAL(109,BeispielUmsatz[AUG])","v":{"v":0,"d":"0 €"}},{"$f":"SUBTOTAL(109,BeispielUmsatz[SEPT])","v":{"v":0,"d":"0 €"}},{"$f":"SUBTOTAL(109,BeispielUmsatz[OKT])","v":{"v":0,"d":"0 €"}},{"$f":"SUBTOTAL(109,BeispielUmsatz[NOV])","v":{"v":0,"d":"0 €"}},{"$f":"SUBTOTAL(109,BeispielUmsatz[DEZ])","v":{"v":0,"d":"0 €"}},{"$f":"SUM(BeispielUmsatz[[#Totals],[JAN]:[DEZ]])","v":{"v":0,"d":"0 €"}}]
[null,"Selbstkosten",{"$f":"C5*0.4","v":{"v":0,"d":"0 €"}},{"v":0,"d":"0 €"},{"v":0,"d":"0 €"},{"v":0,"d":"0 €"},{"v":0,"d":"0 €"},{"v":0,"d":"0 €"},{"v":0,"d":"0 €"},{"v":0,"d":"0 €"},{"v":0,"d":"0 €"},{"v":0,"d":"0 €"},{"v":0,"d":"0 €"},{"v":0,"d":"0 €"},{"v":0,"d":"0 €"}]
[null,"Bruttogewinn",{"$f":"IFERROR(BeispielUmsatz[[#Totals],[JAN]]-C10,\"\")","v":{"v":0,"d":"0 €"}},{"$f":"IFERROR(BeispielUmsatz[[#Totals],[FEB]]-D10,\"\")","v":{"v":0,"d":"0 €"}},{"$f":"IFERROR(BeispielUmsatz[[#Totals],[MRZ]]-E10,\"\")","v":{"v":0,"d":"0 €"}},{"$f":"IFERROR(BeispielUmsatz[[#Totals],[APR]]-F10,\"\")","v":{"v":0,"d":"0 €"}},{"$f":"IFERROR(BeispielUmsatz[[#Totals],[MAI]]-G10,\"\")","v":{"v":0,"d":"0 €"}},{"$f":"IFERROR(BeispielUmsatz[[#Totals],[JUN]]-H10,\"\")","v":{"v":0,"d":"0 €"}},{"$f":"IFERROR(BeispielUmsatz[[#Totals],[JUL]]-I10,\"\")","v":{"v":0,"d":"0 €"}},{"$f":"IFERROR(BeispielUmsatz[[#Totals],[AUG]]-J10,\"\")","v":{"v":0,"d":"0 €"}},{"$f":"IFERROR(BeispielUmsatz[[#Totals],[SEPT]]-K10,\"\")","v":{"v":0,"d":"0 €"}},{"$f":"IFERROR(BeispielUmsatz[[#Totals],[OKT]]-L10,\"\")","v":{"v":0,"d":"0 €"}},{"$f":"IFERROR(BeispielUmsatz[[#Totals],[NOV]]-M10,\"\")","v":{"v":0,"d":"0 €"}},{"$f":"IFERROR(BeispielUmsatz[[#Totals],[DEZ]]-N10,\"\")","v":{"v":0,"d":"0 €"}},{"v":0,"d":"0 €"}]
[]
[null,"AUSGABEN","JAN","FEB","MRZ","APR","MAI","JUN","JUL","AUG","SEPT","OKT","NOV","DEZ","JBH"]
[null,"Löhne und Gehälter",{"v":0,"d":"0 €"},{"v":0,"d":"0 €"},{"v":0,"d":"0 €"},{"v":0,"d":"0 €"},{"v":0,"d":"0 €"},{"v":0,"d":"0 €"},{"v":0,"d":"0 €"},{"v":0,"d":"0 €"},{"v":0,"d":"0 €"},{"v":0,"d":"0 €"},{"v":0,"d":"0 €"},{"v":0,"d":"0 €"},{"$f":"SUM(C14:N14)","v":{"v":0,"d":"0 €"}}]
[null,"Werbung/Marketing",{"v":0,"d":"0 €"},{"v":0,"d":"0 €"},{"v":0,"d":"0 €"},{"v":0,"d":"0 €"},{"v":0,"d":"0 €"},{"v":0,"d":"0 €"},{"v":0,"d":"0 €"},{"v":0,"d":"0 €"},{"v":0,"d":"0 €"},{"v":0,"d":"0 €"},{"v":0,"d":"0 €"},{"v":0,"d":"0 €"},{"$f":"SUM(C15:N15)","v":{"v":0,"d":"0 €"}}]
[null,"Verkaufsprovisionen",{"v":0,"d":"0 €"},{"v":0,"d":"0 €"},{"v":0,"d":"0 €"},{"v":0,"d":"0 €"},{"v":0,"d":"0 €"},{"v":0,"d":"0 €"},{"v":0,"d":"0 €"},{"v":0,"d":"0 €"},{"v":0,"d":"0 €"},{"v":0,"d":"0 €"},{"v":0,"d":"0 €"},{"v":0,"d":"0 €"},{"v":0,"d":"0 €"}]
[null,"Miete",{"v":0,"d":"0 €"},{"v":0,"d":"0 €"},{"v":0,"d":"0 €"},{"v":0,"d":"0 €"},{"v":0,"d":"0 €"},{"v":0,"d":"0 €"},{"v":0,"d":"0 €"},{"v":0,"d":"0 €"},{"v":0,"d":"0 €"},{"v":0,"d":"0 €"},{"v":0,"d":"0 €"},{"v":0,"d":"0 €"},{"v":0,"d":"0 €"}]
[null,"Sonstiges 1",{"v":0,"d":"0 €"},{"v":0,"d":"0 €"},{"v":0,"d":"0 €"},{"v":0,"d":"0 €"},{"v":0,"d":"0 €"},{"v":0,"d":"0 €"},{"v":0,"d":"0 €"},{"v":0,"d":"0 €"},{"v":0,"d":"0 €"},{"v":0,"d":"0 €"},{"v":0,"d":"0 €"},{"v":0,"d":"0 €"},{"v":0,"d":"0 €"}]
[null,"Gesamtausgaben",{"$f":"IF(SUM(C14:C18)=0,\"\",SUM(C14:C18))","v":""},"","","","","","","","","","","",{"$f":"SUM(BeispielAusgaben[[#Totals],[JAN]:[DEZ]])","v":{"v":0,"d":"0 €"}}]
[null,"Einnahmen vor Steuern",{"$f":"IFERROR('Gewinn und Verlust-Vorlage'!$C$11-BeispielAusgaben[[#Totals],[JAN]],\"\")","v":""},{"$f":"IFERROR('Gewinn und Verlust-Vorlage'!$C$11-BeispielAusgaben[[#Totals],[FEB]],\"\")","v":""},{"$f":"IFERROR('Gewinn und Verlust-Vorlage'!$C$11-BeispielAusgaben[[#Totals],[MRZ]],\"\")","v":""},{"$f":"IFERROR('Gewinn und Verlust-Vorlage'!$C$11-BeispielAusgaben[[#Totals],[APR]],\"\")","v":""},{"$f":"IFERROR('Gewinn und Verlust-Vorlage'!$C$11-BeispielAusgaben[[#Totals],[MAI]],\"\")","v":""},{"$f":"IFERROR('Gewinn und Verlust-Vorlage'!$C$11-BeispielAusgaben[[#Totals],[JUN]],\"\")","v":""},{"$f":"IFERROR('Gewinn und Verlust-Vorlage'!$C$11-BeispielAusgaben[[#Totals],[JUL]],\"\")","v":""},{"$f":"IFERROR('Gewinn und Verlust-Vorlage'!$C$11-BeispielAusgaben[[#Totals],[AUG]],\"\")","v":""},{"$f":"IFERROR('Gewinn und Verlust-Vorlage'!$C$11-BeispielAusgaben[[#Totals],[SEPT]],\"\")","v":""},{"$f":"IFERROR('Gewinn und Verlust-Vorlage'!$C$11-BeispielAusgaben[[#Totals],[OKT]],\"\")","v":""},{"$f":"IFERROR('Gewinn und Verlust-Vorlage'!$C$11-BeispielAusgaben[[#Totals],[NOV]],\"\")","v":""},{"$f":"IFERROR('Gewinn und Verlust-Vorlage'!$C$11-BeispielAusgaben[[#Totals],[DEZ]],\"\")","v":""},{"v":0,"d":"0 €"}]
[null,"Einkommenssteueraufwand",{"$f":"IFERROR(C20*0.15,\" \")","v":" "},{"$f":"IFERROR(D20*0.15,\" \")","v":" "},{"$f":"IFERROR(E20*0.15,\" \")","v":" "}," "," "," "," "," "," "," "," "," ",{"$f":"SUM('Gewinn und Verlust-Vorlage'!$C$21:$N$21)","v":{"v":0,"d":"0 €"}}]
[]
[null,"NETTOEINNAHMEN",{"$f":"IFERROR(C20-'Gewinn und Verlust-Vorlage'!$C$21,\"\")","v":""},{"$f":"IFERROR(D20-'Gewinn und Verlust-Vorlage'!$D$21,\"\")","v":""},{"$f":"IFERROR(E20-'Gewinn und Verlust-Vorlage'!$E$21,\"\")","v":""},{"$f":"IFERROR(F20-'Gewinn und Verlust-Vorlage'!$F$21,\"\")","v":""},{"$f":"IFERROR(G20-'Gewinn und Verlust-Vorlage'!$G$21,\"\")","v":""},{"$f":"IFERROR(H20-'Gewinn und Verlust-Vorlage'!$H$21,\"\")","v":""},{"$f":"IFERROR(I20-'Gewinn und Verlust-Vorlage'!$I$21,\"\")","v":""},{"$f":"IFERROR(J20-'Gewinn und Verlust-Vorlage'!$J$21,\"\")","v":""},{"$f":"IFERROR(K20-'Gewinn und Verlust-Vorlage'!$K$21,\"\")","v":""},{"$f":"IFERROR(L20-'Gewinn und Verlust-Vorlage'!$L$21,\"\")","v":""},{"$f":"IFERROR(M20-'Gewinn und Verlust-Vorlage'!$M$21,\"\")","v":""},{"$f":"IFERROR(N20-'Gewinn und Verlust-Vorlage'!$N$21,\"\")","v":""},{"$f":"IFERROR(O20-'Gewinn und Verlust-Vorlage'!$O$21,\"\")","v":{"v":0,"d":"0 €"}}]

{"sheet":"Gewinn und Verlust-Beispiel","index":5,"n_rows":22,"n_cols":15,"rows_kept":22,"merged":[[1,2,1,14]]}
[null,"ANLAUFKOSTEN"]
[null,{"$f":"'Vorlage für Anlaufkosten'!B2","v":"Ihr Coffee-Shop"},{"$f":"TODAY()","v":"2022-01-20"}]
[]
[null,"UMSATZ","JAN","FEB","MRZ","APR","MAI","JUN","JUL","AUG","SEPT","OKT","NOV","DEZ","JBH"]
[null,"Geschätzter Produktumsatz",{"v":5000,"d":"5,000 €"},{"v":13000,"d":"13,000 €"},{"v":16000,"d":"16,000 €"},{"v":7000,"d":"7,000 €"},{"v":14500,"d":"14,500 €"},{"v":16400,"d":"16,400 €"},{"v":22500,"d":"22,500 €"},{"v":23125,"d":"23,125 €"},{"v":24549,"d":"24,549 €"},{"v":22000,"d":"22,000 €"},{"v":25000,"d":"25,000 €"},{"v":27349,"d":"27,349 €"},{"$f":"SUM(C5:N5)","v":{"v":216423,"d":"216,423 €"}}]
[null,"Minus Retouren und Rabatte",{"v":0,"d":"0 €"},{"v":-350,"d":"-350 €"},{"v":0,"d":"0 €"},{"v":-206,"d":"-206 €"},{"v":-234,"d":"-234 €"},{"v":0,"d":"0 €"},{"v":0,"d":"0 €"},{"v":-280,"d":"-280 €"},{"v":-1200,"d":"-1,200 €"},{"v":-1600,"d":"-1,600 €"},{"v":0,"d":"0 €"},{"v":-2400,"d":"-2,400 €"},{"$f":"SUM(C6:N6)","v":{"v":-6270,"d":"-6,270 €"}}]
[null,"Serviceumsatz",{"v":0,"d":"0 €"},{"v":0,"d":"0 €"},{"v":0,"d":"0 €"},{"v":0,"d":"0 €"},{"v":0,"d":"0 €"},{"v":250,"d":"250 €"},{"v":350,"d":"350 €"},{"v":100,"d":"100 €"},{"v":0,"d":"0 €"},{"v":0,"d":"0 €"},{"v":1245,"d":"1,245 €"},{"v":1360,"d":"1,360 €"},{"v":3305,"d":"3,305 €"}]
[null,"Sonstige Umsatzerlöse ",{"v":0,"d":"0 €"},{"v":0,"d":"0 €"},{"v":0,"d":"0 €"},{"v":0,"d":"0 €"},{"v":0,"d":"0 €"},{"v":0,"d":"0 €"},{"v":0,"d":"0 €"},{"v":1500,"d":"1,500 €"},{"v":0,"d":"0 €"},{"v":0,"d":"0 €"},{"v":0,"d":"0 €"},{"v":0,"d":"0 €"},{"v":1500,"d":"1,500 €"}]
[null,"Nettoumsatz",{"$f":"SUBTOTAL(109,TatsächlicheEinnahmen[JAN])","v":{"v":5000,"d":"5,000 €"}},{"$f":"SUBTOTAL(109,TatsächlicheEinnahmen[FEB])","v":{"v":12650,"d":"12,650 €"}},{"$f":"SUBTOTAL(109,TatsächlicheEinnahmen[MRZ])","v":{"v":16000,"d":"16,000 €"}},{"$f":"SUBTOTAL(109,TatsächlicheEinnahmen[APR])","v":{"v":6794,"d":"6,794 €"}},{"$f":"SUBTOTAL(109,TatsächlicheEinnahmen[MAI])","v":{"v":14266,"d":"14,266 €"}},{"$f":"SUBTOTAL(109,TatsächlicheEinnahmen[JUN])","v":{"v":16650,"d":"16,650 €"}},{"$f":"SUBTOTAL(109,TatsächlicheEinnahmen[JUL])","v":{"v":22850,"d":"22,850 €"}},{"$f":"SUBTOTAL(109,TatsächlicheEinnahmen[AUG])","v":{"v":24445,"d":"24,445 €"}},{"$f":"SUBTOTAL(109,TatsächlicheEinnahmen[SEPT])","v":{"v":23349,"d":"23,349 €"}},{"$f":"SUBTOTAL(109,TatsächlicheEinnahmen[OKT])","v":{"v":20400,"d":"20,400 €"}},{"$f":"SUBTOTAL(109,TatsächlicheEinnahmen[NOV])","v":{"v":26245,"d":"26,245 €"}},{"$f":"SUBTOTAL(109,TatsächlicheEinnahmen[DEZ])","v":{"v":26309,"d":"26,309 €"}},{"$f":"SUM(TatsächlicheEinnahmen[[#Totals],[JAN]:[DEZ]])","v":{"v":214958,"d":"214,958 €"}}]
[null,"Selbstkosten",{"$f":"C5*0.4","v":{"v":2000,"d":"2,000 €"}},{"v":5200,"d":"5,200 €"},{"v":6400,"d":"6,400 €"},{"v":2800,"d":"2,800 €"},{"v":5800,"d":"5,800 €"},{"v":6560,"d":"6,560 €"},{"v":9000,"d":"9,000 €"},{"v":9250,"d":"9,250 €"},{"v":9819.6,"d":"9,820 €"},{"v":8800,"d":"8,800 €"},{"v":10000,"d":"10,000 €"},{"v":10939.6,"d":"10,940 €"},{"v":86569.20000000001,"d":"86,569 €"}]
[null,"Bruttogewinn",{"$f":"IFERROR(TatsächlicheEinnahmen[[#Totals],[JAN]]-C10,\"\")","v":{"v":3000,"d":"3,000 €"}},{"$f":"IFERROR(TatsächlicheEinnahmen[[#Totals],[FEB]]-D10,\"\")","v":{"v":7450,"d":"7,450 €"}},{"$f":"IFERROR(TatsächlicheEinnahmen[[#Totals],[MRZ]]-E10,\"\")","v":{"v":9600,"d":"9,600 €"}},{"$f":"IFERROR(TatsächlicheEinnahmen[[#Totals],[APR]]-F10,\"\")","v":{"v":3994,"d":"3,994 €"}},{"$f":"IFERROR(TatsächlicheEinnahmen[[#Totals],[MAI]]-G10,\"\")","v":{"v":8466,"d":"8,466 €"}},{"$f":"IFERROR(TatsächlicheEinnahmen[[#Totals],[JUN]]-H10,\"\")","v":{"v":10090,"d":"10,090 €"}},{"$f":"IFERROR(TatsächlicheEinnahmen[[#Totals],[JUL]]-I10,\"\")","v":{"v":13850,"d":"13,850 €"}},{"$f":"IFERROR(TatsächlicheEinnahmen[[#Totals],[AUG]]-J10,\"\")","v":{"v":15195,"d":"15,195 €"}},{"$f":"IFERROR(TatsächlicheEinnahmen[[#Totals],[SEPT]]-K10,\"\")","v":{"v":13529.4,"d":"13,529 €"}},{"$f":"IFERROR(TatsächlicheEinnahmen[[#Totals],[OKT]]-L10,\"\")","v":{"v":11600,"d":"11,600 €"}},{"$f":"IFERROR(TatsächlicheEinnahmen[[#Totals],[NOV]]-M10,\"\")","v":{"v":16245,"d":"16,245 €"}},{"$f":"IFERROR(TatsächlicheEinnahmen[[#Totals],[DEZ]]-N10,\"\")","v":{"v":15369.4,"d":"15,369 €"}},{"v":128388.79999999999,"d":"128,389 €"}]
[]
[null,"AUSGABEN","JAN","FEB","MRZ","APR","MAI","JUN","JUL","AUG","SEPT","OKT","NOV","DEZ","JBH"]
[null,"Löhne und Gehälter",{"v":2500,"d":"2,500 €"},{"v":2500,"d":"2,500 €"},{"v":3500,"d":"3,500 €"},{"v":5000,"d":"5,000 €"},{"v":5000,"d":"5,000 €"},{"v":5000,"d":"5,000 €"},{"v":8000,"d":"8,000 €"},{"v":9000,"d":"9,000 €"},{"v":9000,"d":"9,000 €"},{"v":9000,"d":"9,000 €"},{"v":9000,"d":"9,000 €"},{"v":9000,"d":"9,000 €"},{"$f":"SUM(C14:N14)","v":{"v":76500,"d":"76,500 €"}}]
[null,"Werbung/Marketing",{"v":400,"d":"400 €"},{"v":450,"d":"450 €"},{"v":450,"d":"450 €"},{"v":450,"d":"450 €"},{"v":900,"d":"900 €"},{"v":900,"d":"900 €"},{"v":900,"d":"900 €"},{"v":900,"d":"900 €"},{"v":900,"d":"900 €"},{"v":900,"d":"900 €"},{"v":1200,"d":"1,200 €"},{"v":1200,"d":"1,200 €"},{"$f":"SUM(C15:N15)","v":{"v":9550,"d":"9,550 €"}}]
[null,"Verkaufsprovisionen",{"v":250,"d":"250 €"},{"v":650,"d":"650 €"},{"v":800,"d":"800 €"},{"v":350,"d":"350 €"},{"v":725,"d":"725 €"},{"v":820,"d":"820 €"},{"v":1125,"d":"1,125 €"},{"v":1156.25,"d":"1,156 €"},{"v":1227.45,"d":"1,227 €"},{"v":1100,"d":"1,100 €"},{"v":1250,"d":"1,250 €"},{"v":1367.45,"d":"1,367 €"},{"$f":"SUM(C16:N16)","v":{"v":10821.150000000001,"d":"10,821 €"}}]
[null,"Miete",{"v":1250,"d":"1,250 €"},{"v":1250,"d":"1,250 €"},{"v":1250,"d":"1,250 €"},{"v":1250,"d":"1,250 €"},{"v":1250,"d":"1,250 €"},{"v":1250,"d":"1,250 €"},{"v":1250,"d":"1,250 €"},{"v":1250,"d":"1,250 €"},{"v":1250,"d":"1,250 €"},{"v":1250,"d":"1,250 €"},{"v":1250,"d":"1,250 €"},{"v":1250,"d":"1,250 €"},{"v":15000,"d":"15,000 €"}]
[null,"Ausgaben gesamt",{"$f":"IF(SUM(C14:C17)=0,\"\",SUM(C14:C17))","v":{"v":4400,"d":"4,400 €"}},{"$f":"IF(SUM(D14:D17)=0,\"\",SUM(D14:D17))","v":{"v":4850,"d":"4,850 €"}},{"v":6000,"d":"6,000 €"},{"v":7050,"d":"7,050 €"},{"v":7875,"d":"7,875 €"},{"v":7970,"d":"7,970 €"},{"v":11275,"d":"11,275 €"},{"v":12306.25,"d":"12,306 €"},{"v":12377.45,"d":"12,377 €"},{"v":12250,"d":"12,250 €"},{"v":12700,"d":"12,700 €"},{"v":12817.45,"d":"12,817 €"},{"v":111871.15,"d":"111,871 €"}]
[null,"Einnahmen vor Steuern",{"$f":"IFERROR('Gewinn und Verlust-Beispiel'!$C$11-IstAusgaben[[#Totals],[JAN]],\"\")","v":{"v":-1400,"d":"-1,400 €"}},{"$f":"IFERROR('Gewinn und Verlust-Beispiel'!$D$11-IstAusgaben[[#Totals],[FEB]],\"\")","v":{"v":2600,"d":"2,600 €"}},{"$f":"IFERROR('Gewinn und Verlust-Beispiel'!$E$11-IstAusgaben[[#Totals],[MRZ]],\"\")","v":{"v":3600,"d":"3,600 €"}},{"$f":"IFERROR('Gewinn und Verlust-Beispiel'!$F$11-IstAusgaben[[#Totals],[APR]],\"\")","v":{"v":-3056,"d":"-3,056 €"}},{"$f":"IFERROR('Gewinn und Verlust-Beispiel'!$G$11-IstAusgaben[[#Totals],[MAI]],\"\")","v":{"v":591,"d":"591 €"}},{"$f":"IFERROR('Gewinn und Verlust-Beispiel'!$H$11-IstAusgaben[[#Totals],[JUN]],\"\")","v":{"v":2120,"d":"2,120 €"}},{"$f":"IFERROR('Gewinn und Verlust-Beispiel'!$I$11-IstAusgaben[[#Totals],[JUL]],\"\")","v":{"v":2575,"d":"2,575 €"}},{"$f":"IFERROR('Gewinn und Verlust-Beispiel'!$J$11-IstAusgaben[[#Totals],[AUG]],\"\")","v":{"v":2888.75,"d":"2,889 €"}},{"$f":"IFERROR('Gewinn und Verlust-Beispiel'!$K$11-IstAusgaben[[#Totals],[SEPT]],\"\")","v":{"v":1151.949999999999,"d":"1,152 €"}},{"$f":"IFERROR('Gewinn und Verlust-Beispiel'!$L$11-IstAusgaben[[#Totals],[OKT]],\"\")","v":{"v":-650,"d":"-650 €"}},{"$f":"IFERROR('Gewinn und Verlust-Beispiel'!$M$11-IstAusgaben[[#Totals],[NOV]],\"\")","v":{"v":3545,"d":"3,545 €"}},{"$f":"IFERROR('Gewinn und Verlust-Beispiel'!$N$11-IstAusgaben[[#Totals],[DEZ]],\"\")","v":{"v":2551.949999999999,"d":"2,552 €"}},{"$f":"SUM(C19:N19)","v":{"v":16517.649999999998,"d":"16,518 €"}}]
[null,"Einkommenssteueraufwand",{"$f":"C19*0.15","v":{"v":-210,"d":"-210 €"}},{"v":390,"d":"390 €"},{"$f":"E19*0.15","v":{"v":540,"d":"540 €"}},{"$f":"F19*0.15","v":{"v":-458.4,"d":"-458 €"}},{"$f":"G19*0.15","v":{"v":88.64999999999999,"d":"89 €"}},{"$f":"H19*0.15","v":{"v":318,"d":"318 €"}},{"$f":"I19*0.15","v":{"v":386.25,"d":"386 €"}},{"$f":"J19*0.15","v":{"v":433.3125,"d":"433 €"}},{"$f":"K19*0.15","v":{"v":172.79249999999982,"d":"173 €"}},{"$f":"L19*0.15","v":{"v":-97.5,"d":"-98 €"}},{"$f":"M19*0.15","v":{"v":531.75,"d":"532 €"}},{"$f":"N19*0.15","v":{"v":382.79249999999985,"d":"383 €"}},{"$f":"SUM('Gewinn und Verlust-Beispiel'!$C$20:$N$20)","v":{"v":2477.6474999999996,"d":"2,478 €"}}]
[]
[null,"NETTOEINNAHMEN",{"$f":"IFERROR(C19-'Gewinn und Verlust-Beispiel'!$C$20,\" \")","v":{"v":-1190,"d":"-1,190 €"}},{"$f":"IFERROR(D19-'Gewinn und Verlust-Beispiel'!$D$20,\" \")","v":{"v":2210,"d":"2,210 €"}},{"$f":"IFERROR(E19-'Gewinn und Verlust-Beispiel'!$E$20,\"\")","v":{"v":3060,"d":"3,060 €"}},{"$f":"IFERROR(F19-'Gewinn und Verlust-Beispiel'!$F$20,\"\")","v":{"v":-2597.6,"d":"-2,598 €"}},{"$f":"IFERROR(G19-'Gewinn und Verlust-Beispiel'!$G$20,\"\")","v":{"v":502.35,"d":"502 €"}},{"$f":"IFERROR(H19-'Gewinn und Verlust-Beispiel'!$H$20,\"\")","v":{"v":1802,"d":"1,802 €"}},{"$f":"IFERROR(I19-'Gewinn und Verlust-Beispiel'!$I$20,\"\")","v":{"v":2188.75,"d":"2,189 €"}},{"$f":"IFERROR(J19-'Gewinn und Verlust-Beispiel'!$J$20,\"\")","v":{"v":2455.4375,"d":"2,455 €"}},{"$f":"IFERROR(K19-'Gewinn und Verlust-Beispiel'!$K$20,\"\")","v":{"v":979.1574999999991,"d":"979 €"}},{"$f":"IFERROR(L19-'Gewinn und Verlust-Beispiel'!$L$20,\"\")","v":{"v":-552.5,"d":"-553 €"}},{"$f":"IFERROR(M19-'Gewinn und Verlust-Beispiel'!$M$20,\"\")","v":{"v":3013.25,"d":"3,013 €"}},{"$f":"IFERROR(N19-'Gewinn und Verlust-Beispiel'!$N$20,\"\")","v":{"v":2169.157499999999,"d":"2,169 €"}},{"$f":"IFERROR(O19-'Gewinn und Verlust-Beispiel'!$O$20,\"\")","v":{"v":14040.002499999999,"d":"14,040 €"}}]